[Event "Frauenbundesliga 2021-22"]
[Site "Germany"]
[Date "2022.05.26"]
[Round "3.1"]
[White "Cyfka, Karina"]
[Black "Sliwicka, Alicja"]
[Result "1-0"]
[ECO "D90"]
[WhiteElo "2404"]
[BlackElo "2273"]
[Annotator "TA"]
[PlyCount "119"]
[EventDate "2021.11.26"]
[EventType "team-tourn"]
[EventCountry "GER"]
[SourceTitle "playchess.com"]
[Source "ChessBase"]
[SourceQuality "1"]
[WhiteTeam "Leipzig"]
[BlackTeam "Rodewisch"]
[TimeControl "40/5400+30:1800+30"]

{[%evp 14,119,6,20,16,20,18,-18,-5,-3,100,18,21,3,88,16,14,0,0,0,0,-3,0,0,46,50,25,0,16,6,4,0,9,5,26,16,21,16,93,0,37,30,108,116,193,183,190,183,192,192,192,191,192,182,354,157,157,157,163,163,163,157,614,626,616,616,566,556,503,371,384,377,377,361,524,522,760,716,690,615,940,793,29970,29971,29967,29968,29968,29969,29961,29966,29973,29974,29975,29976,29977,29978,29978,29977,29978,29976,29979,29980,29980,29981,29980,29980,29983,29976]} 1. d4 {[%emt 0:00:03]} Nf6 {[%emt 0:00:06]} 2. c4 {[%emt 0:00:19]} g6 {[%emt 0:00:07]} 3. Nc3 {[%emt 0:00:44]} d5 {[%emt 0:00:07]} 4. cxd5 {[%emt 0:01:47]} Nxd5 {[%emt 0:00:06]} 5. Bd2 {[%emt 0:00:04]} Nb6 {[%emt 0:04:37]} 6. Bf4 {[%emt 0:09:21]} Bg7 {[%emt 0:04:08]} 7. e3 {[%emt 0:01:01]} O-O {[%emt 0:09:48]} 8. Nf3 {[%emt 0:04:29]} c5 {[%emt 0:13:20] D90: Grünfeld: 4 Nf3 Bg7 sidelines.} 9. dxc5 {[%emt 0:04:19]} N6d7 {[%emt 0:01:44]} 10. Bc4 {[%emt 0:07:41]} Nc6 {[%emt 0:08:48] The position is equal.} 11. O-O {[%emt 0:04:27]} Qa5 {[%emt 0:12:49]} (11... Nxc5 $11 12. Qe2 Bg4) 12. Rc1 {[%emt 0:04:14] 0x0.001df06cc709dp-1022s more active pieces. The black rooks are badly placed.} (12. Nd5 $1 $16) 12... Nxc5 $11 {[%emt 0:05:08] [#]} 13. Qe2 $146 {[%emt 0:08:15]} ({Predecessor:} 13. a3 Be6 14. Qe2 Bxc4 15. Qxc4 Ne6 16. Bg3 Rac8 17. Qb3 Rfd8 18. Qa2 Qh5 19. Rfd1 Bxc3 20. Rxd8+ Rxd8 21. bxc3 {½-½ (60) Esserman,M (2408)-Cumming,R (2135) England 2015}) 13... Bf5 {[%emt 0:04:22] [#]} (13... Bg4 $11 14. h3 Bxf3 15. gxf3 (15. Qxf3 Rad8 $11) 15... Rad8) 14. Rfd1 {[%emt 0:09:40]} (14. Nd5 $1 $16 {[%cal Ob2b4] Black must now prevent b4!} e6 15. b4) 14... Ne6 {[%emt 0:04:45]} 15. Bg3 {[%emt 0:03:32]} Rad8 {[%emt 0:05:11]} 16. Nh4 {[%emt 0:03:44]} Rxd1+ {[%emt 0:11:03]} 17. Qxd1 {[%emt 0:00:14]} Rd8 {[%emt 0:00:18]} 18. Qe2 {[%emt 0:01:50]} g5 {[%emt 0:00:53]} (18... Bxc3 $11 {is more appropriate.} 19. Rxc3 Ng7) 19. Nxf5 $14 {[%emt 0:04:03]} Qxf5 {[%emt 0:00:05]} 20. Rd1 {[%emt 0:05:22]} (20. Nd5 $5) 20... Nc5 {[%emt 0:01:19]} 21. Rxd8+ {[%emt 0:04:50]} Nxd8 {[%emt 0:00:05]} 22. f3 {[%emt 0:03:29]} (22. Qd2 {is more complex.} Nc6 23. f3 g4 24. fxg4 Bxc3 25. bxc3 Qxg4 26. Qd5) 22... Nc6 {[%emt 0:00:26]} 23. Qd2 {[%emt 0:01:57]} h5 {[%emt 0:03:22]} 24. e4 {[%emt 0:02:52]} Qg6 {[%emt 0:01:16]} 25. Bf2 {[%emt 0:00:26] This bishop pair is nice.} b6 {[%emt 0:01:57]} (25... Ne6 $11 {keeps the balance.}) 26. Nd5 {[%emt 0:05:15]} (26. Qd5 $16) 26... e6 {[%emt 0:01:29]} (26... g4 $5 {[%cal Rg4f3]}) 27. Ne3 $36 {[%emt 0:03:13][%mdl 2048] Strongly threatening b4. White has good play.} g4 {[%emt 0:00:36] [#]} (27... Ne5 $11 {remains equal.}) 28. b4 $1 $16 {[%emt 0:00:41]} Nxe4 {[%emt 0:03:51]} 29. fxe4 $18 {[%emt 0:00:33]} Qxe4 {[%emt 0:00:19]} 30. a3 {[%emt 0:02:08]} Bf6 {[%emt 0:01:12]} 31. Bf1 {[%emt 0:01:42]} Ne5 {[%emt 0:00:50]} 32. Qc2 {[%emt 0:01:37]} Qf4 {[%emt 0:00:11]} 33. Nc4 {[%emt 0:00:31]} h4 $2 {[%emt 0:01:47]} (33... Nxc4 {keeps fighting.} 34. Qxc4 Be5 35. Qxf4 Bxf4) 34. Nxe5 {[%emt 0:00:49]} (34. Be3 $18 {and the rest is easy.} Qf5 35. Qxf5 exf5 36. Nd6) 34... Bxe5 $16 {[%emt 0:00:04][%csl Ge5][%cal Rf4h2]} 35. g3 $1 {[%emt 0:00:05]} hxg3 {[%emt 0:00:22]} 36. hxg3 {[%emt 0:00:10]} Qf3 {[%emt 0:00:36]} 37. Qd3 {[%emt 0:01:14]} Qc6 {[%emt 0:00:36] Black cannot hold the game after this.} (37... Qxd3 $16 38. Bxd3 f5) 38. Qd8+ $18 {[%emt 0:00:23]} Kh7 {[%emt 0:00:31]} 39. Qh4+ {[%emt 0:00:24]} Kg8 {[%emt 0:00:47]} 40. Qg5+ {[%emt 0:00:52]} Bg7 {[%emt 0:00:05]} 41. Qxg4 {[%emt 0:31:18] And now Bd4 would win.} Qc3 {[%emt 0:04:49] Inhibits Bd4.} 42. a4 {[%emt 0:00:00]} Kf8 {[%emt 0:07:23]} 43. Qc4 {[%emt 0:00:00]} Ke7 {[%emt 0:00:16]} (43... Qd2 $142 44. a5 Be5 45. axb6 axb6) 44. a5 {[%emt 0:00:00]} Qe5 {[%emt 0:04:16]} 45. axb6 {[%emt 0:00:00]} axb6 {[%emt 0:00:07]} 46. Qc6 {[%emt 0:00:00]} Qg5 {[%emt 0:04:37]} 47. Qxb6 {[%emt 0:00:00] White threatens Bc5+ and mate.} Be5 {[%emt 0:00:06]} 48. Bc5+ {[%emt 0:00:00] White mates.} Kf6 {[%emt 0:03:51]} 49. Qd8+ {[%emt 0:00:00]} Kg6 {[%emt 0:00:07]} 50. Qxg5+ {[%emt 0:00:00]} Kxg5 {[%emt 0:00:04]} 51. Kg2 {[%emt 0:00:00]} Bb8 {[%emt 0:01:27]} 52. Bc4 {[%emt 0:00:00]} Kf5 {[%emt 0:00:39]} 53. Kf3 {[%emt 0:00:00]} Ke5 {[%emt 0:03:00]} 54. g4 {[%emt 0:00:00]} Kf6 {[%emt 0:00:16]} 55. Be3 {[%emt 0:00:00]} Kg6 {[%emt 0:00:14]} 56. Bf4 {[%emt 0:00:00]} e5 {[%emt 0:00:11]} 57. Bd3+ {[%emt 0:00:00]} Kf6 {[%emt 0:00:09]} 58. Be3 {[%emt 0:00:00]} Ke7 {[%emt 0:02:07]} 59. Ke4 {[%emt 0:00:00]} f6 {[%emt 0:00:15]} 60. Bc5+ {[%emt 0:00:00] Weighted Error Value: White=0.18 (very precise) /Black=0.69} 1-0

[Event "Frauenbundesliga 2021-22"]
[Site "Germany"]
[Date "2022.05.26"]
[Round "3.2"]
[White "Lubbe, Melanie"]
[Black "Kulon, Klaudia"]
[Result "1-0"]
[ECO "C90"]
[WhiteElo "2308"]
[BlackElo "2305"]
[Annotator "TA"]
[PlyCount "69"]
[EventDate "2021.11.26"]
[EventType "team-tourn"]
[EventCountry "GER"]
[SourceTitle "playchess.com"]
[Source "ChessBase"]
[SourceQuality "1"]
[WhiteTeam "Rodewisch"]
[BlackTeam "Leipzig"]
[TimeControl "40/5400+30:1800+30"]

{[%evp 20,69,16,20,37,33,51,15,60,45,55,47,72,42,52,48,73,47,75,68,88,30,130,116,113,88,157,76,350,334,661,544,554,505,785,754,1125,1126,1108,1095,1141,1127,29969,29960,29987,810,29987,29988,29991,29992,29998,29999]} 1. e4 {[%emt 0:00:03]} e5 {[%emt 0:00:04]} 2. Nf3 {[%emt 0:00:04]} Nc6 {[%emt 0:00:05]} 3. Bc4 {[%emt 0:00:04]} Nf6 {[%emt 0:00:13]} 4. d3 {[%emt 0:00:10]} Be7 {[%emt 0:00:59]} 5. O-O {[%emt 0:00:23]} O-O {[%emt 0:00:04]} 6. Re1 {[%emt 0:01:32]} d6 {[%emt 0:01:22]} 7. c3 {[%emt 0:00:44]} Na5 {[%emt 0:00:59]} 8. Bb5 {[%emt 0:01:11]} a6 {[%emt 0:00:05]} 9. Ba4 {[%emt 0:00:04]} b5 {[%emt 0:00:05]} 10. Bc2 {[%emt 0:00:05]} c5 {[%emt 0:00:05]} 11. Nbd2 {[%emt 0:02:29]} g6 {[%emt 0:03:23] C90: Closed Ruy Lopez with 7...d6: Early deviations.} 12. Nf1 {[%emt 0:01:55]} Nh5 {[%emt 0:00:30]} 13. d4 {[%emt 0:06:51]} Qc7 {[%emt 0:01:36] The position is equal.} 14. Ne3 {[%emt 0:10:56] And now Nd5 would win.} Be6 {[%emt 0:03:17]} 15. dxe5 {[%emt 0:04:19]} dxe5 {[%emt 0:00:11]} 16. Nd5 {[%emt 0:00:21]} Bxd5 {[%emt 0:01:11]} 17. exd5 {[%emt 0:00:20]} Bd6 {[%emt 0:01:00] [#]} 18. Ng5 $146 {[%emt 0:08:56][%cal Og5h7]} ({Predecessor:} 18. a4 f6 19. b3 c4 20. b4 Nb7 21. Be3 Ng7 22. Qe2 Rfb8 23. Ra2 Nd8 24. Rea1 {0-1 (54) Kasperkiewicz,P (1963)-Koziol,P (1906) Warsaw 2015}) 18... Ng7 {[%emt 0:07:01]} 19. Qf3 {[%emt 0:07:01]} Qd7 {[%emt 0:14:17]} 20. Qg3 {[%emt 0:22:27]} (20. Qf6 Be7 21. Ne4 (21. Qxe5 Rae8 $11) 21... Nh5) (20. b3 $16) 20... Ne8 {[%emt 0:08:07]} (20... Nh5 $11 {remains equal.} 21. Qh4 Be7) 21. f4 $16 {[%emt 0:07:46]} (21. Qh4 f5 $14) 21... exf4 {[%emt 0:05:00]} 22. Bxf4 $40 {[%emt 0:00:06][%cal Bc1f4,Bf4e5,Be5d4][%mdl 160] White is out for blood.} ({Don't do} 22. Qh4 Nf6 $11) 22... Nb7 {[%emt 0:07:46] [#]} (22... Bxf4 $142 23. Qxf4 Qd6) 23. Re3 {[%emt 0:05:28] 0x0.001df02e80e8dp-1022s more active pieces. The black rooks are badly placed.} ({But not} 23. Qh4 Nf6 $16) (23. Rf1 $142 $1) 23... c4 $2 {[%emt 0:08:37][%mdl 8192] Black cannot hold the game after this.} (23... Nf6 $16) 24. Nxh7 $18 {[%emt 0:11:43]} ({Not} 24. Qh4 h5 $14) 24... Bc5 {[%emt 0:07:50]} (24... Kxh7 25. Qh4+ Kg8) 25. Nxf8 {[%emt 0:00:27]} Kxf8 {[%emt 0:00:14]} 26. Be5 {[%emt 0:03:25]} Bxe3+ {[%emt 0:01:46]} (26... Ng7 $142 27. Bd4 Bxd4) 27. Qxe3 {[%emt 0:00:02] [#] Qh6+ is the strong threat.} Qxd5 {[%emt 0:02:54]} 28. Qh6+ {[%emt 0:01:57]} Ke7 {[%emt 0:00:01]} 29. Qh4+ {[%emt 0:01:40]} Kf8 {[%emt 0:02:09]} 30. Re1 {[%emt 0:00:23] Threatens to win with Qh8+.} Rc8 {[%emt 0:03:58]} 31. Bd4 {[%emt 0:00:57][%cal Rh4h8]} f6 {[%emt 0:02:42]} 32. Be4 {[%emt 0:00:51] A strong pair of Bishops.} (32. Qh6+ $142 Ng7 33. Bxf6 Rc7 34. Bxg6 Nd6 35. Rf1 Qc5+ 36. Kh1 Nf7 37. Qxg7+ Ke8 38. Rd1 Qg1+ 39. Kxg1 Rd7 40. Qh8#) 32... Qd7 {[%emt 0:00:51]} 33. Qh8+ {[%emt 0:00:51] White mates.} Kf7 {[%emt 0:00:04]} 34. Qh7+ {[%emt 0:00:17]} Ng7 {[%emt 0:00:05]} 35. Bxg6+ {[%emt 0:00:12] Weighted Error Value: White=0.26 (precise) /Black=1.24} 1-0

[Event "Frauenbundesliga 2021-22"]
[Site "Germany"]
[Date "2022.05.26"]
[Round "3.3"]
[White "Hincu, Olga"]
[Black "Movsesian, Julia"]
[Result "1-0"]
[ECO "D30"]
[WhiteElo "2078"]
[BlackElo "2313"]
[Annotator "TA"]
[PlyCount "81"]
[EventDate "2021.11.26"]
[EventType "team-tourn"]
[EventCountry "GER"]
[SourceTitle "playchess.com"]
[Source "ChessBase"]
[SourceQuality "1"]
[WhiteTeam "Leipzig"]
[BlackTeam "Rodewisch"]
[TimeControl "40/5400+30:1800+30"]

{[%evp 9,81,7,1,0,13,13,15,12,11,10,15,0,0,-2,-3,-8,-18,-27,-30,-66,-49,-55,-16,-31,-36,-29,-15,-37,0,-24,-17,-20,36,41,124,35,71,83,70,65,172,171,635,637,627,603,590,604,951,216,225,227,205,43,46,19,47,1,1,1,16,16,86,86,79,79,114,96,93,82,182,183,1060,988]} 1. d4 {[%emt 0:00:03]} d5 {[%emt 0:00:06]} 2. Nf3 {[%emt 0:00:04]} e6 {[%emt 0:00:03]} 3. c4 {[%emt 0:00:06]} a6 {[%emt 0:00:05]} 4. e3 {[%emt 0:00:56]} Nf6 {[%emt 0:00:38]} 5. Bd3 {[%emt 0:01:11]} dxc4 {[%emt 0:04:18]} 6. Bxc4 {[%emt 0:00:04] D30: Queen's Gambit Declined: Systems without Nc3.} b5 {[%emt 0:00:09]} 7. Be2 {[%emt 0:04:31]} Bb7 {[%emt 0:04:11]} 8. O-O {[%emt 0:00:30] The position is equal.} Nbd7 {[%emt 0:03:21]} 9. a4 {[%emt 0:02:49]} b4 {[%emt 0:02:31]} 10. a5 {[%emt 0:04:10]} c5 {[%emt 0:05:20]} 11. Nbd2 {[%emt 0:00:18]} Be7 {[%emt 0:10:51]} 12. Nc4 {[%emt 0:04:06]} O-O {[%emt 0:01:56]} 13. Nfe5 {[%emt 0:10:30]} Qc7 {[%emt 0:06:07] [#]} 14. Bf3 $146 {[%emt 0:27:18]} ({Predecessor:} 14. Nxd7 Nxd7 15. b3 cxd4 16. exd4 Nf6 17. Be3 Nd5 18. Qc2 Bf6 19. Rac1 Rad8 20. Bf3 {0-1 (29) Stokstad,P (2225)-Alsina Leal,D (2517) Barcelona 2008}) 14... Bd5 {[%emt 0:07:52]} 15. b3 {[%emt 0:04:26]} Rad8 {[%emt 0:01:07]} 16. Bb2 {[%emt 0:07:53]} Nxe5 {[%emt 0:07:28]} 17. Nxe5 {[%emt 0:00:23]} Ne4 {[%emt 0:03:53]} 18. Qc2 {[%emt 0:10:36]} Qb7 {[%emt 0:02:28]} (18... Nc3 $5) 19. Nc4 {[%emt 0:00:32]} Bf6 {[%emt 0:18:25] White should prevent ...cxd4.} 20. Nb6 {[%emt 0:00:58]} Bc6 {[%emt 0:01:11]} (20... cxd4 $1 $11 21. exd4 Nc3 22. Nxd5 exd5) 21. Rac1 $14 {[%emt 0:02:54]} Bh4 {[%emt 0:05:36]} (21... Rd6 $14) 22. Qe2 {[%emt 0:03:04]} (22. dxc5 $2 Rd2 23. Qb1 Bxf2+ 24. Rxf2 Rxf2 $19) (22. Na4 $1 $16) 22... Bf6 {[%emt 0:05:31][%cal Rc5d4]} 23. Bxe4 {[%emt 0:03:47]} ({Stronger than} 23. dxc5 Rd2 24. Qc4 Bxb2 $17) 23... Bxe4 {[%emt 0:00:04]} 24. f3 {[%emt 0:00:36]} Bd5 {[%emt 0:00:28]} (24... Bc6 $1 $14) 25. dxc5 $18 {[%emt 0:02:22] Threatens to win with Bxf6.} Bxb3 $2 {[%emt 0:00:40]} (25... Bxb2 26. Qxb2 Bc6) 26. Bxf6 {[%emt 0:00:17]} gxf6 {[%emt 0:00:04]} 27. Qb2 {[%emt 0:03:08]} Bd5 {[%emt 0:02:47]} 28. Qxf6 {[%emt 0:00:27]} Qc6 {[%emt 0:01:29]} 29. Nxd5 $2 {[%emt 0:03:25]} (29. Rfd1) 29... Rxd5 {[%emt 0:00:01] [#]} 30. Rc4 {[%emt 0:00:36] White threatens Rg4+ and mate.} h5 {[%emt 0:00:15] [#] Against Rg4+} 31. Rxb4 $2 {[%emt 0:00:44]} (31. Rfc1 $1 $18 {e4 is the strong threat.} Qa4 32. c6) 31... Qxc5 $14 {[%emt 0:00:10]} 32. Rd4 {[%emt 0:00:48]} Rxd4 {[%emt 0:01:45]} 33. exd4 {[%emt 0:00:10]} (33. Qxd4 $14 {is more appropriate.} Rc8 34. Ra1) 33... Qxa5 $11 {[%emt 0:00:16][%mdl 4096] Endgame KQR-KQR} 34. f4 $36 {[%emt 0:01:18][%mdl 2048] White fights for an advantage.} Rb8 {[%emt 0:04:58]} 35. f5 {[%emt 0:00:44]} exf5 {[%emt 0:00:13]} (35... Qd2 $1 $11 {remains equal.}) 36. Qg5+ $16 {[%emt 0:00:24]} ({Much weaker is} 36. Rxf5 $6 Rb1+ 37. Rf1 Rxf1+ 38. Qxf1 Qb5 $11) ({Don't play} 36. Qxf5 Qxf5 37. Rxf5 Rb5 $11) 36... Kf8 {[%emt 0:00:07]} 37. Qxh5 {[%emt 0:00:31] Black must now prevent Qh8+. White is more active.} Rb5 {[%emt 0:01:28]} 38. Qh8+ {[%emt 0:00:50]} Ke7 {[%emt 0:00:05]} 39. Qh4+ {[%emt 0:00:08]} Kd7 {[%emt 0:00:52]} (39... Kf8 $16) 40. Qf6 $18 {[%emt 0:00:32] aiming for Rc1.} Qa2 $2 {[%emt 0:00:24]} (40... Qc3 41. Qxf7+ Kc8) 41. Re1 {[%emt 0:31:35] Weighted Error Value: White=0.41/Black=0.51} 1-0

[Event "Frauenbundesliga 2021-22"]
[Site "Germany"]
[Date "2022.05.26"]
[Round "3.4"]
[White "Theissl Pokorna, Regina"]
[Black "Germann, Heike"]
[Result "1/2-1/2"]
[ECO "B72"]
[WhiteElo "2302"]
[BlackElo "1997"]
[Annotator "TA"]
[PlyCount "75"]
[EventDate "2021.11.26"]
[EventType "team-tourn"]
[EventCountry "GER"]
[SourceTitle "playchess.com"]
[Source "ChessBase"]
[SourceQuality "1"]
[WhiteTeam "Rodewisch"]
[BlackTeam "Leipzig"]
[TimeControl "40/5400+30:1800+30"]

{[%evp 23,75,29,39,18,25,22,23,4,0,0,33,32,32,27,24,0,0,0,0,0,0,0,0,0,4,6,6,6,13,2,23,20,38,22,30,10,49,0,0,0,0,0,0,0,0,0,0,0,0,0,0,0,0,0]} 1. e4 {[%emt 0:00:03]} c5 {[%emt 0:00:01]} 2. Nf3 {[%emt 0:00:14]} Nc6 {[%emt 0:00:02]} 3. d4 {[%emt 0:00:06]} cxd4 {[%emt 0:00:04]} 4. Nxd4 {[%emt 0:00:06]} g6 {[%emt 0:00:04]} 5. Nc3 {[%emt 0:00:07]} Bg7 {[%emt 0:00:06]} 6. Be3 {[%emt 0:00:06]} Nf6 {[%emt 0:00:08]} 7. Bc4 {[%emt 0:00:23]} Qa5 {[%emt 0:00:13]} 8. O-O {[%emt 0:01:17]} O-O {[%emt 0:00:07]} 9. Bb3 {[%emt 0:00:20]} d6 {[%emt 0:00:24]} 10. h3 {[%emt 0:00:03]} Bd7 {[%emt 0:00:31]} 11. Qd3 {[%emt 0:00:16]} Nxd4 {[%emt 0:03:09]} 12. Bxd4 {[%emt 0:00:07]} Bc6 {[%emt 0:00:33]} 13. Rfe1 {[%emt 0:01:01][%cal Oc3d5] B72: Sicilian Dragon: 6 Be3, lines with h3+Bc4 and sidelines.} Nd7 {[%emt 0:09:00]} 14. Bxg7 {[%emt 0:14:10]} Kxg7 {[%emt 0:00:12]} 15. Nd5 {[%emt 0:00:36] White has an edge.} Nc5 {[%emt 0:12:39] [#]} 16. Qe3 $146 {[%emt 0:25:15]} ({Predecessor:} 16. Qd4+ e5 17. Qe3 Bxd5 18. Bxd5 Qb6 19. Rab1 Qc7 20. c3 a6 21. Rbd1 Rab8 22. Rd2 {1-0 (42) Van der Weide,K (2482)-Vilerte,T (2234) Triesen 2008}) 16... Bxd5 {[%emt 0:11:46]} (16... e6 $5 {[%cal Re6d5]} 17. Nc3 Rfd8 $11) 17. exd5 {[%emt 0:00:17]} Rfe8 {[%emt 0:00:21]} 18. Rad1 {[%emt 0:06:07]} Rac8 {[%emt 0:01:01]} 19. c3 {[%emt 0:09:15]} Nxb3 {[%emt 0:09:10]} 20. axb3 {[%emt 0:00:16]} Qa2 {[%emt 0:06:18]} 21. c4 {[%emt 0:08:23] [#] And now Qc3+ would win.} Qxb2 {[%emt 0:03:21]} 22. Rb1 {[%emt 0:00:09]} Qa3 {[%emt 0:02:31]} 23. Ra1 {[%emt 0:00:21]} Qc5 {[%emt 0:01:36] Inhibits Qd4+.} 24. Rxa7 {[%emt 0:05:31]} Qxe3 {[%emt 0:00:35]} 25. Rxe3 $11 {[%emt 0:00:05][%mdl 4096] Endgame KRR-KRR} Rc7 {[%emt 0:00:13]} 26. Kf1 {[%emt 0:00:55]} e5 {[%emt 0:02:42]} 27. dxe6 {[%emt 0:09:29]} Rxe6 {[%emt 0:00:50]} 28. Ke2 {[%emt 0:00:46]} Kf6 {[%emt 0:00:21]} 29. Kd3 {[%emt 0:03:55]} Rxe3+ {[%emt 0:00:08]} (29... d5 $5) 30. Kxe3 {[%emt 0:00:06] KR-KR} (30. fxe3 $14 {was preferrable.} Ke5 31. Ra8) 30... d5 {[%emt 0:03:52] The position is equal.} 31. c5 {[%emt 0:01:13]} Rxc5 {[%emt 0:02:41] aiming for ...Rc3+.} 32. Rxb7 {[%emt 0:00:03]} Rc3+ {[%emt 0:00:13]} 33. Kd2 {[%emt 0:05:13]} d4 {[%emt 0:02:49]} 34. h4 {[%emt 0:06:19]} h5 {[%emt 0:00:43]} 35. Rb5 {[%emt 0:01:12]} Ke6 {[%emt 0:03:01]} 36. Rb7 {[%emt 0:01:41]} Kf6 {[%emt 0:00:16]} 37. Rb5 {[%emt 0:01:37]} Ke6 {[%emt 0:00:09]} 38. Rb7 {[%emt 0:00:18] Weighted Error Value: White=0.08 (flawless) /Black=0.05 (flawless)} 1/2-1/2